[Event "*** Titled Tuesday Blitz"]
[Site "Chess.com"]
[Date "2020.11.10"]
[Round "1"]
[White "ErikRonka"]
[Black "Sankalp_Gupta2003"]
[Result "1-0"]
[WhiteElo "2389"]
[BlackElo "2704"]
[TimeControl "180+1"]
[EndTime "10:09:57 PST"]
[Termination "ErikRonka won by checkmate"]

1. e4 {[%clk 0:02:58.9]} 1... c6 {[%clk 0:03:00]} 2. Nf3 {[%clk 0:02:54]} 2...
d5 {[%clk 0:03:00.9]} 3. d3 {[%clk 0:02:54.6]} 3... dxe4 {[%clk 0:02:51.1]} 4.
dxe4 {[%clk 0:02:55.5]} 4... Qxd1+ {[%clk 0:02:51.7]} 5. Kxd1 {[%clk 0:02:56.4]}
5... f6 {[%clk 0:02:52.6]} 6. Be3 {[%clk 0:02:55.3]} 6... Bg4 {[%clk 0:02:50.6]}
7. Nd2 {[%clk 0:02:53.4]} 7... e5 {[%clk 0:02:50.9]} 8. Be2 {[%clk 0:02:53.4]}
8... Nd7 {[%clk 0:02:50.8]} 9. Ne1 {[%clk 0:02:52.4]} 9... Be6 {[%clk
0:02:49.7]} 10. Nd3 {[%clk 0:02:49.9]} 10... Ne7 {[%clk 0:02:39.7]} 11. c3
{[%clk 0:02:47.3]} 11... Nc8 {[%clk 0:02:40]} 12. Kc2 {[%clk 0:02:46.6]} 12...
a5 {[%clk 0:02:39.2]} 13. a4 {[%clk 0:02:45.5]} 13... Ncb6 {[%clk 0:02:39.6]}
14. b3 {[%clk 0:02:43.3]} 14... Bd6 {[%clk 0:02:36.1]} 15. g3 {[%clk 0:02:41.1]}
15... Ke7 {[%clk 0:02:36.6]} 16. f4 {[%clk 0:02:40.3]} 16... Rad8 {[%clk
0:02:22.9]} 17. f5 {[%clk 0:02:07.3]} 17... Bf7 {[%clk 0:02:12.8]} 18. g4 {[%clk
0:02:07.6]} 18... Na8 {[%clk 0:02:05.6]} 19. h4 {[%clk 0:02:05]} 19... Nc7
{[%clk 0:02:06]} 20. g5 {[%clk 0:02:02.4]} 20... Na6 {[%clk 0:02:06.6]} 21. h5
{[%clk 0:01:57.2]} 21... Ndc5 {[%clk 0:01:54.1]} 22. g6 {[%clk 0:01:47.6]} 22...
hxg6 {[%clk 0:01:50.3]} 23. hxg6 {[%clk 0:01:39.6]} 23... Rxh1 {[%clk
0:01:51.2]} 24. Rxh1 {[%clk 0:01:39.3]} 24... Bg8 {[%clk 0:01:51.9]} 25. Nf2
{[%clk 0:01:28.1]} 25... Bc7 {[%clk 0:01:42.5]} 26. Nd3 {[%clk 0:01:04]} 26...
Bb6 {[%clk 0:01:38.1]} 27. Nxc5 {[%clk 0:00:58.7]} 27... Nxc5 {[%clk 0:01:24.8]}
28. Nc4 {[%clk 0:00:48.4]} 28... Bxc4 {[%clk 0:01:07.9]} 29. Bxc5+ {[%clk
0:00:46.2]} 29... Bxc5 {[%clk 0:01:07.2]} 30. Bxc4 {[%clk 0:00:47.1]} 30... Be3
{[%clk 0:01:06.7]} 31. Bd3 {[%clk 0:00:46.6]} 31... Kd6 {[%clk 0:01:01.3]} 32.
Bc4 {[%clk 0:00:43]} 32... Kc7 {[%clk 0:00:56]} 33. Rh7 {[%clk 0:00:41.2]} 33...
Rd2+ {[%clk 0:00:42.9]} 34. Kb1 {[%clk 0:00:40.9]} 34... Rd1+ {[%clk 0:00:41.8]}
35. Kb2 {[%clk 0:00:37.9]} 35... Rd2+ {[%clk 0:00:42]} 36. Ka3 {[%clk
0:00:35.7]} 36... Rc2 {[%clk 0:00:32.4]} 37. Rxg7+ {[%clk 0:00:34.2]} 37... Kb6
{[%clk 0:00:33]} 38. b4 {[%clk 0:00:27.4]} 38... Bc1+ {[%clk 0:00:33.2]} 39. Kb3
{[%clk 0:00:24.6]} 39... Rb2+ {[%clk 0:00:34.1]} 40. Ka3 {[%clk 0:00:24.4]}
40... Rxb4+ {[%clk 0:00:27.5]} 41. Ka2 {[%clk 0:00:23.4]} 41... Rxc4 {[%clk
0:00:28.4]} 42. Rxb7+ {[%clk 0:00:20.2]} 42... Kxb7 {[%clk 0:00:24.5]} 43. g7
{[%clk 0:00:21.1]} 43... Rxa4+ {[%clk 0:00:18.1]} 44. Kb1 {[%clk 0:00:20.4]}
44... Bg5 {[%clk 0:00:18.1]} 45. g8=Q {[%clk 0:00:19.9]} 45... Rxe4 {[%clk
0:00:17.1]} 46. Qf7+ {[%clk 0:00:18.5]} 46... Kb6 {[%clk 0:00:16.8]} 47. Qb3+
{[%clk 0:00:17.3]} 47... Ka6 {[%clk 0:00:12.2]} 48. Qd1 {[%clk 0:00:14.3]} 48...
Re3 {[%clk 0:00:07.9]} 49. Kb2 {[%clk 0:00:10.2]} 49... Kb6 {[%clk 0:00:07.4]}
50. Qd8+ {[%clk 0:00:09.6]} 50... Kb5 {[%clk 0:00:06.9]} 51. Qd6 {[%clk
0:00:09.9]} 51... a4 {[%clk 0:00:04.5]} 52. Qb4+ {[%clk 0:00:09.3]} 52... Ka6
{[%clk 0:00:05.2]} 53. Qxa4+ {[%clk 0:00:09.7]} 53... Kb6 {[%clk 0:00:06.1]} 54.
Qb4+ {[%clk 0:00:10.2]} 54... Kc7 {[%clk 0:00:06.6]} 55. Qa5+ {[%clk 0:00:09.6]}
55... Kd6 {[%clk 0:00:06.7]} 56. Qb4+ {[%clk 0:00:09]} 56... Kd7 {[%clk
0:00:06.8]} 57. Qb7+ {[%clk 0:00:08]} 57... Kd6 {[%clk 0:00:07]} 58. Kb3 {[%clk
0:00:07.8]} 58... e4 {[%clk 0:00:07.2]} 59. Qb8+ {[%clk 0:00:07.9]} 59... Kd5
{[%clk 0:00:06.3]} 60. Qd8+ {[%clk 0:00:07.8]} 60... Ke5 {[%clk 0:00:06.3]} 61.
Qd7 {[%clk 0:00:08.1]} 61... Rd3 {[%clk 0:00:04]} 62. Qe6+ {[%clk 0:00:07.9]}
62... Kf4 {[%clk 0:00:04]} 63. Qxc6 {[%clk 0:00:07.1]} 63... Ke3 {[%clk
0:00:04.1]} 64. Qe6 {[%clk 0:00:06.2]} 64... Kf3 {[%clk 0:00:03.3]} 65. Ka4
{[%clk 0:00:05.3]} 65... Rxc3 {[%clk 0:00:03.1]} 66. Qd5 {[%clk 0:00:03.1]}
66... Rd3 {[%clk 0:00:03.3]} 67. Qc4 {[%clk 0:00:02.9]} 67... Kf4 {[%clk
0:00:03.5]} 68. Qc7+ {[%clk 0:00:02.6]} 68... Kxf5 {[%clk 0:00:03.8]} 69. Qc2
{[%clk 0:00:03.5]} 69... Ke5 {[%clk 0:00:03.8]} 70. Qh2+ {[%clk 0:00:03.3]}
70... Bf4 {[%clk 0:00:03.8]} 71. Qg2 {[%clk 0:00:04.2]} 71... f5 {[%clk
0:00:04.2]} 72. Qb2+ {[%clk 0:00:04.6]} 72... Rd4+ {[%clk 0:00:04.2]} 73. Kb5
{[%clk 0:00:04]} 73... Be3 {[%clk 0:00:04.3]} 74. Qb1 {[%clk 0:00:02.8]} 74...
Kf4 {[%clk 0:00:04.7]} 75. Qf1+ {[%clk 0:00:02.2]} 75... Kg5 {[%clk 0:00:05]}
76. Qg2+ {[%clk 0:00:03.1]} 76... Kf6 {[%clk 0:00:05.2]} 77. Qe2 {[%clk
0:00:03.5]} 77... Rd5+ {[%clk 0:00:05.4]} 78. Kc6 {[%clk 0:00:03.3]} 78... Rc5+
{[%clk 0:00:05.1]} 79. Kd6 {[%clk 0:00:03.8]} 79... Bd4 {[%clk 0:00:04.8]} 80.
Qd2 {[%clk 0:00:03.9]} 80... Rc4 {[%clk 0:00:04.5]} 81. Qh6+ {[%clk 0:00:03.8]}
81... Kf7 {[%clk 0:00:05]} 82. Qh7+ {[%clk 0:00:03.4]} 82... Bg7 {[%clk
0:00:05.3]} 83. Qxf5+ {[%clk 0:00:03.4]} 83... Bf6 {[%clk 0:00:04.7]} 84. Qd5+
{[%clk 0:00:03.1]} 84... Kg6 {[%clk 0:00:04.3]} 85. Qxc4 {[%clk 0:00:04]} 85...
Kf5 {[%clk 0:00:05.2]} 86. Qe2 {[%clk 0:00:04.2]} 86... Kf4 {[%clk 0:00:04.4]}
87. Kd5 {[%clk 0:00:05.1]} 87... e3 {[%clk 0:00:05.3]} 88. Kc4 {[%clk
0:00:04.8]} 88... Bg5 {[%clk 0:00:05.5]} 89. Kd3 {[%clk 0:00:05.2]} 89... Kg3
{[%clk 0:00:06.1]} 90. Qe1+ {[%clk 0:00:04.7]} 90... Kf3 {[%clk 0:00:06.4]} 91.
Qe2+ {[%clk 0:00:05.1]} 91... Kf4 {[%clk 0:00:06.7]} 92. Qxe3+ {[%clk
0:00:04.8]} 92... Kf5 {[%clk 0:00:07.4]} 93. Qe4+ {[%clk 0:00:05.7]} 93... Kf6
{[%clk 0:00:07.9]} 94. Kd4 {[%clk 0:00:05.4]} 94... Kg7 {[%clk 0:00:08.6]} 95.
Kd5 {[%clk 0:00:06.3]} 95... Kh6 {[%clk 0:00:09.5]} 96. Ke6 {[%clk 0:00:06.4]}
96... Kh5 {[%clk 0:00:10.4]} 97. Kf5 {[%clk 0:00:05.2]} 97... Bd8 {[%clk
0:00:08.3]} 98. Qg4+ {[%clk 0:00:05.3]} 98... Kh6 {[%clk 0:00:08.9]} 99. Qg6#
{[%clk 0:00:06.2]} 1-0

[Event "*** Titled Tuesday Blitz"]
[Site "Chess.com"]
[Date "2020.11.10"]
[Round "2"]
[White "Salem-AR"]
[Black "Savagelittlemole"]
[Result "1-0"]
[WhiteElo "2924"]
[BlackElo "2581"]
[TimeControl "180+1"]
[EndTime "10:14:38 PST"]
[Termination "Salem-AR won by resignation"]

1. d4 {[%clk 0:02:56.6]} 1... Nf6 {[%clk 0:02:59.8]} 2. c4 {[%clk 0:02:55.4]}
2... e6 {[%clk 0:03:00.2]} 3. Nf3 {[%clk 0:02:54.7]} 3... d5 {[%clk 0:03:00.4]}
4. Nc3 {[%clk 0:02:54.6]} 4... Bb4 {[%clk 0:03:00.3]} 5. Bg5 {[%clk 0:02:53.3]}
5... h6 {[%clk 0:02:59.6]} 6. Bxf6 {[%clk 0:02:53.5]} 6... Qxf6 {[%clk
0:03:00.5]} 7. e3 {[%clk 0:02:54.2]} 7... O-O {[%clk 0:02:59.9]} 8. Rc1 {[%clk
0:02:55]} 8... b6 {[%clk 0:02:57]} 9. cxd5 {[%clk 0:02:49.7]} 9... exd5 {[%clk
0:02:55.9]} 10. a3 {[%clk 0:02:46.8]} 10... Be7 {[%clk 0:02:49.2]} 11. Nxd5
{[%clk 0:02:46.3]} 11... Qe6 {[%clk 0:02:45.8]} 12. Nxc7 {[%clk 0:02:45.5]}
12... Qd7 {[%clk 0:02:34.2]} 13. Ne5 {[%clk 0:02:27.2]} 13... Qd8 {[%clk
0:02:31.3]} 14. Nxa8 {[%clk 0:02:26.8]} 1-0

[Event "*** Titled Tuesday Blitz"]
[Site "Chess.com"]
[Date "2020.11.10"]
[Round "2"]
[White "Tenamu"]
[Black "fm_magua"]
[Result "0-1"]
[WhiteElo "2304"]
[BlackElo "2584"]
[TimeControl "180+1"]
[EndTime "10:15:01 PST"]
[Termination "fm_magua won by checkmate"]

1. d4 {[%clk 0:03:00.9]} 1... Nf6 {[%clk 0:02:50.5]} 2. Nc3 {[%clk 0:03:00.8]}
2... g6 {[%clk 0:02:51.4]} 3. e4 {[%clk 0:03:00.1]} 3... d6 {[%clk 0:02:51.2]}
4. Nf3 {[%clk 0:02:59.8]} 4... Bg7 {[%clk 0:02:50.4]} 5. Be2 {[%clk 0:03:00.4]}
5... O-O {[%clk 0:02:51]} 6. O-O {[%clk 0:03:00.8]} 6... c5 {[%clk 0:02:51.5]}
7. dxc5 {[%clk 0:03:00.2]} 7... dxc5 {[%clk 0:02:51.6]} 8. Qxd8 {[%clk
0:03:00.9]} 8... Rxd8 {[%clk 0:02:52.4]} 9. Be3 {[%clk 0:03:01]} 9... b6 {[%clk
0:02:51.7]} 10. e5 {[%clk 0:03:00.7]} 10... Nd5 {[%clk 0:02:51.3]} 11. Rad1
{[%clk 0:02:59.3]} 11... Bb7 {[%clk 0:02:50.2]} 12. Bc4 {[%clk 0:02:59]} 12...
e6 {[%clk 0:02:48.5]} 13. Nb5 {[%clk 0:02:58]} 13... Na6 {[%clk 0:02:43.1]} 14.
Nd6 {[%clk 0:02:56.1]} 14... Nxe3 {[%clk 0:02:41.8]} 15. fxe3 {[%clk 0:02:57]}
15... Bxf3 {[%clk 0:02:41.4]} 16. Rxf3 {[%clk 0:02:56.7]} 16... Nb4 {[%clk
0:02:39.3]} 17. Rxf7 {[%clk 0:02:51.6]} 17... Bxe5 {[%clk 0:02:36.4]} 18. Bxe6
{[%clk 0:02:51.5]} 18... Bxd6 {[%clk 0:02:30.5]} 19. Rxa7+ {[%clk 0:02:49.2]}
19... Kh8 {[%clk 0:02:30.5]} 20. Rxa8 {[%clk 0:02:49.2]} 20... Rxa8 {[%clk
0:02:31.4]} 21. Rxd6 {[%clk 0:02:49]} 21... Nxc2 {[%clk 0:02:31.7]} 22. Rxb6
{[%clk 0:02:48.1]} 22... Nxe3 {[%clk 0:02:29.9]} 23. a3 {[%clk 0:02:48.2]} 23...
Re8 {[%clk 0:02:28.6]} 24. a4 {[%clk 0:02:44.2]} 24... Nd1 {[%clk 0:02:24.5]}
25. Bd5 {[%clk 0:02:36.7]} 25... Re1# {[%clk 0:02:23.3]} 0-1

[Event "*** Titled Tuesday Blitz"]
[Site "Chess.com"]
[Date "2020.11.10"]
[Round "2"]
[White "mapleaff"]
[Black "BillCoe"]
[Result "1-0"]
[WhiteElo "2378"]
[BlackElo "2064"]
[TimeControl "180+1"]
[EndTime "10:15:11 PST"]
[Termination "mapleaff won by resignation"]

1. e4 {[%clk 0:03:00.9]} 1... c5 {[%clk 0:02:59.2]} 2. Nf3 {[%clk 0:03:00]} 2...
e6 {[%clk 0:02:59.8]} 3. g3 {[%clk 0:02:57.2]} 3... Nc6 {[%clk 0:02:58.3]} 4.
Bg2 {[%clk 0:02:50.2]} 4... g6 {[%clk 0:02:55.3]} 5. O-O {[%clk 0:02:46.3]} 5...
Bg7 {[%clk 0:02:55.1]} 6. c3 {[%clk 0:02:44.6]} 6... Nge7 {[%clk 0:02:52.2]} 7.
d4 {[%clk 0:02:44.2]} 7... cxd4 {[%clk 0:02:50.2]} 8. cxd4 {[%clk 0:02:42.8]}
8... d6 {[%clk 0:02:50.3]} 9. Nc3 {[%clk 0:02:40.6]} 9... O-O {[%clk 0:02:49.8]}
10. h4 {[%clk 0:02:40.2]} 10... h6 {[%clk 0:02:47.5]} 11. Be3 {[%clk 0:02:38.6]}
11... a6 {[%clk 0:02:46.5]} 12. Qd2 {[%clk 0:02:38.8]} 12... Kh7 {[%clk
0:02:46.4]} 13. d5 {[%clk 0:02:37.9]} 13... exd5 {[%clk 0:02:34.1]} 14. Nxd5
{[%clk 0:02:31.6]} 14... Nxd5 {[%clk 0:02:33.2]} 15. exd5 {[%clk 0:02:32.2]}
15... Ne7 {[%clk 0:02:32.8]} 16. Rac1 {[%clk 0:02:28.6]} 16... Qa5 {[%clk
0:02:11.6]} 17. Qxa5 {[%clk 0:02:27.2]} 1-0

[Event "*** Titled Tuesday Blitz"]
[Site "Chess.com"]
[Date "2020.11.10"]
[Round "2"]
[White "klimkoj"]
[Black "Nuvas"]
[Result "1-0"]
[WhiteElo "2635"]
[BlackElo "2314"]
[TimeControl "180+1"]
[EndTime "10:15:55 PST"]
[Termination "klimkoj won by resignation"]

1. e4 {[%clk 0:03:00.9]} 1... e5 {[%clk 0:03:00]} 2. Nf3 {[%clk 0:03:00.8]} 2...
Nc6 {[%clk 0:03:00.4]} 3. Bb5 {[%clk 0:03:00.2]} 3... a6 {[%clk 0:03:01]} 4. Ba4
{[%clk 0:03:00.4]} 4... Nf6 {[%clk 0:03:01.7]} 5. O-O {[%clk 0:02:59.9]} 5...
Nxe4 {[%clk 0:03:01.9]} 6. d4 {[%clk 0:02:59.6]} 6... b5 {[%clk 0:03:02.4]} 7.
Bb3 {[%clk 0:02:59.8]} 7... d5 {[%clk 0:03:03.1]} 8. dxe5 {[%clk 0:02:56.4]}
8... Be6 {[%clk 0:03:03.2]} 9. Qe2 {[%clk 0:02:56.4]} 9... Be7 {[%clk
0:03:01.5]} 10. Rd1 {[%clk 0:02:56.8]} 10... O-O {[%clk 0:03:01.7]} 11. c4
{[%clk 0:02:56.1]} 11... bxc4 {[%clk 0:03:02]} 12. Bxc4 {[%clk 0:02:55.4]} 12...
Bc5 {[%clk 0:03:02.3]} 13. Be3 {[%clk 0:02:48]} 13... Bxe3 {[%clk 0:03:02.5]}
14. Qxe3 {[%clk 0:02:48.4]} 14... Qb8 {[%clk 0:03:02.8]} 15. Bb3 {[%clk
0:02:44.1]} 15... Na5 {[%clk 0:03:02.7]} 16. Nbd2 {[%clk 0:02:38]} 16... c5
{[%clk 0:02:27.5]} 17. Nxe4 {[%clk 0:02:25.1]} 17... Nxb3 {[%clk 0:02:27]} 18.
Nf6+ {[%clk 0:02:17.8]} 18... gxf6 {[%clk 0:02:26.8]} 19. exf6 {[%clk
0:02:18.5]} 19... Kh8 {[%clk 0:02:26.9]} 20. Qh6 {[%clk 0:02:13.4]} 20... Rg8
{[%clk 0:02:23.8]} 21. Ng5 {[%clk 0:02:13.6]} 21... Rxg5 {[%clk 0:02:18]} 22.
Qxg5 {[%clk 0:02:14.5]} 22... Qg8 {[%clk 0:02:18.3]} 23. Qxg8+ {[%clk 0:02:14]}
23... Rxg8 {[%clk 0:02:19.2]} 24. axb3 {[%clk 0:02:14.5]} 24... d4 {[%clk
0:02:19.2]} 25. b4 {[%clk 0:02:06]} 1-0

[Event "*** Titled Tuesday Blitz"]
[Site "Chess.com"]
[Date "2020.11.10"]
[Round "2"]
[White "exoticprincess"]
[Black "Harry_Rakkel"]
[Result "1-0"]
[WhiteElo "2872"]
[BlackElo "2561"]
[TimeControl "180+1"]
[EndTime "10:15:57 PST"]
[Termination "exoticprincess won by resignation"]

1. e4 {[%clk 0:03:00.9]} 1... c5 {[%clk 0:02:59]} 2. d4 {[%clk 0:02:59.6]} 2...
cxd4 {[%clk 0:02:58]} 3. c3 {[%clk 0:02:59.7]} 3... dxc3 {[%clk 0:02:57.7]} 4.
Nxc3 {[%clk 0:03:00.6]} 4... Nc6 {[%clk 0:02:57.2]} 5. Nf3 {[%clk 0:03:01.1]}
5... e6 {[%clk 0:02:56.9]} 6. Bc4 {[%clk 0:03:01]} 6... a6 {[%clk 0:02:56.9]} 7.
O-O {[%clk 0:02:59]} 7... d6 {[%clk 0:02:53.6]} 8. Re1 {[%clk 0:02:58.6]} 8...
Qc7 {[%clk 0:02:51.8]} 9. Bf4 {[%clk 0:02:56]} 9... Ne5 {[%clk 0:02:50.1]} 10.
Bb3 {[%clk 0:02:53.6]} 10... Nf6 {[%clk 0:02:49.5]} 11. Rc1 {[%clk 0:02:53.2]}
11... Qb8 {[%clk 0:02:50]} 12. Na4 {[%clk 0:02:47.5]} 12... Nfd7 {[%clk
0:02:42.1]} 13. Nd4 {[%clk 0:02:40.9]} 13... b5 {[%clk 0:02:36]} 14. Bxe6 {[%clk
0:02:40.4]} 14... bxa4 {[%clk 0:02:26.9]} 15. Bd5 {[%clk 0:02:39.9]} 15... Bb7
{[%clk 0:02:24.4]} 16. Qxa4 {[%clk 0:02:36]} 16... Ra7 {[%clk 0:01:53.6]} 17.
Bxe5 {[%clk 0:02:33.4]} 17... dxe5 {[%clk 0:01:51.7]} 18. Bxf7+ {[%clk
0:02:33.3]} 18... Kd8 {[%clk 0:01:42.7]} 19. Nf5 {[%clk 0:02:19.7]} 19... g6
{[%clk 0:01:36.6]} 20. Qa5+ {[%clk 0:02:17.9]} 1-0

[Event "*** Titled Tuesday Blitz"]
[Site "Chess.com"]
[Date "2020.11.10"]
[Round "2"]
[White "QuintilianoR"]
[Black "Piotrek1979"]
[Result "1-0"]
[WhiteElo "2696"]
[BlackElo "2464"]
[TimeControl "180+1"]
[EndTime "10:15:57 PST"]
[Termination "QuintilianoR won by resignation"]

1. Nf3 {[%clk 0:03:00.9]} 1... Nf6 {[%clk 0:02:58.3]} 2. c4 {[%clk 0:03:00.4]}
2... g6 {[%clk 0:02:59]} 3. Nc3 {[%clk 0:03:00.2]} 3... Bg7 {[%clk 0:02:59.9]}
4. d4 {[%clk 0:03:00.6]} 4... O-O {[%clk 0:03:00.8]} 5. e4 {[%clk 0:03:00.2]}
5... d6 {[%clk 0:03:00.7]} 6. Be2 {[%clk 0:03:00.4]} 6... c5 {[%clk 0:02:59.9]}
7. O-O {[%clk 0:03:00]} 7... cxd4 {[%clk 0:02:59.6]} 8. Nxd4 {[%clk 0:03:00.9]}
8... Nc6 {[%clk 0:02:59.6]} 9. Be3 {[%clk 0:03:01.1]} 9... Bd7 {[%clk
0:02:58.8]} 10. h3 {[%clk 0:03:01]} 10... Nxd4 {[%clk 0:02:58]} 11. Bxd4 {[%clk
0:03:01.5]} 11... Bc6 {[%clk 0:02:58.3]} 12. Qc2 {[%clk 0:03:01.7]} 12... Nd7
{[%clk 0:02:50.9]} 13. Bxg7 {[%clk 0:03:00.5]} 13... Kxg7 {[%clk 0:02:50.5]} 14.
b4 {[%clk 0:03:01.4]} 14... b6 {[%clk 0:02:47.5]} 15. Rad1 {[%clk 0:03:00.5]}
15... Rc8 {[%clk 0:02:44.9]} 16. Qb3 {[%clk 0:02:55.8]} 16... Bb7 {[%clk
0:02:35]} 17. Rfe1 {[%clk 0:02:53.1]} 17... Nf6 {[%clk 0:02:16.2]} 18. Bf1
{[%clk 0:02:37.6]} 18... Qc7 {[%clk 0:02:14.2]} 19. Re3 {[%clk 0:02:30.1]} 19...
e6 {[%clk 0:02:12.9]} 20. Nb5 {[%clk 0:02:27.1]} 20... Qb8 {[%clk 0:02:11.5]}
21. Nxd6 {[%clk 0:02:26.4]} 21... Rcd8 {[%clk 0:02:09.9]} 22. c5 {[%clk
0:02:18.7]} 22... bxc5 {[%clk 0:02:08.2]} 23. bxc5 {[%clk 0:02:19.6]} 23... Bxe4
{[%clk 0:02:01.5]} 24. Qxb8 {[%clk 0:02:15.6]} 24... Rxb8 {[%clk 0:02:00.8]} 25.
Nxe4 {[%clk 0:02:16]} 25... Nxe4 {[%clk 0:02:00.6]} 26. Rxe4 {[%clk 0:02:16.9]}
26... Rfc8 {[%clk 0:02:00.3]} 27. Rc4 {[%clk 0:02:13.5]} 27... Rb2 {[%clk
0:01:58.7]} 28. a4 {[%clk 0:02:12.6]} 1-0

[Event "*** Titled Tuesday Blitz"]
[Site "Chess.com"]
[Date "2020.11.10"]
[Round "2"]
[White "WonderChampion"]
[Black "Ural_bogatyr"]
[Result "0-1"]
[WhiteElo "2030"]
[BlackElo "2370"]
[TimeControl "180+1"]
[EndTime "10:16:07 PST"]
[Termination "Ural_bogatyr won by checkmate"]

1. d4 {[%clk 0:03:00.9]} 1... Nf6 {[%clk 0:02:53]} 2. Nf3 {[%clk 0:02:59.8]}
2... d5 {[%clk 0:02:51.2]} 3. e3 {[%clk 0:02:59]} 3... c5 {[%clk 0:02:51]} 4.
dxc5 {[%clk 0:02:56.9]} 4... Nc6 {[%clk 0:02:50.7]} 5. Bb5 {[%clk 0:02:54.7]}
5... Bd7 {[%clk 0:02:46.5]} 6. O-O {[%clk 0:02:50.4]} 6... e6 {[%clk 0:02:45.9]}
7. c4 {[%clk 0:02:42.7]} 7... dxc4 {[%clk 0:02:41.9]} 8. Bxc4 {[%clk 0:02:43.6]}
8... Bxc5 {[%clk 0:02:41.5]} 9. Nc3 {[%clk 0:02:39.4]} 9... O-O {[%clk
0:02:40.8]} 10. e4 {[%clk 0:02:32]} 10... e5 {[%clk 0:02:32.2]} 11. Bg5 {[%clk
0:02:30.2]} 11... Be6 {[%clk 0:02:30.5]} 12. Bxe6 {[%clk 0:02:26]} 12... fxe6
{[%clk 0:02:30.1]} 13. Qb3 {[%clk 0:02:21]} 13... Qe7 {[%clk 0:02:24.9]} 14.
Rad1 {[%clk 0:02:14.5]} 14... h6 {[%clk 0:02:23.4]} 15. Bxf6 {[%clk 0:02:09.8]}
15... Rxf6 {[%clk 0:02:24.3]} 16. Qc2 {[%clk 0:02:02.7]} 16... Raf8 {[%clk
0:02:23.5]} 17. a3 {[%clk 0:01:55.5]} 17... Rxf3 {[%clk 0:02:18.1]} 18. gxf3
{[%clk 0:01:53.7]} 18... Nd4 {[%clk 0:02:19]} 19. Qd3 {[%clk 0:01:50.7]} 19...
Nxf3+ {[%clk 0:02:13.7]} 20. Kg2 {[%clk 0:01:47.1]} 20... Qg5+ {[%clk
0:02:13.2]} 21. Kh3 {[%clk 0:01:36.1]} 21... Qh4+ {[%clk 0:02:11.4]} 22. Kg2
{[%clk 0:01:35.3]} 22... Qxh2# {[%clk 0:02:12.3]} 0-1

[Event "*** Titled Tuesday Blitz"]
[Site "Chess.com"]
[Date "2020.11.10"]
[Round "2"]
[White "DrMamaliga"]
[Black "Nikolakis2014"]
[Result "0-1"]
[WhiteElo "2334"]
[BlackElo "2753"]
[TimeControl "180+1"]
[EndTime "10:16:41 PST"]
[Termination "Nikolakis2014 won by resignation"]

1. c4 {[%clk 0:03:00.9]} 1... Nf6 {[%clk 0:02:59.2]} 2. Nf3 {[%clk 0:03:00.1]}
2... g6 {[%clk 0:02:59.4]} 3. b4 {[%clk 0:03:00.4]} 3... Bg7 {[%clk 0:02:59.4]}
4. Bb2 {[%clk 0:03:00.9]} 4... O-O {[%clk 0:02:59.3]} 5. g3 {[%clk 0:03:00.7]}
5... d6 {[%clk 0:02:56.7]} 6. Bg2 {[%clk 0:03:00.7]} 6... e5 {[%clk 0:02:56.9]}
7. O-O {[%clk 0:03:00.9]} 7... Re8 {[%clk 0:02:54.8]} 8. Nc3 {[%clk 0:03:00.5]}
8... Nc6 {[%clk 0:02:54.7]} 9. d3 {[%clk 0:03:00.2]} 9... Nxb4 {[%clk
0:02:54.1]} 10. Qa4 {[%clk 0:02:56.4]} 10... Na6 {[%clk 0:02:49]} 11. Nd2 {[%clk
0:02:46.4]} 11... Nc5 {[%clk 0:02:45.8]} 12. Qc2 {[%clk 0:02:43.6]} 12... c6
{[%clk 0:02:45.3]} 13. e3 {[%clk 0:02:39.4]} 13... Bf5 {[%clk 0:02:43.7]} 14. e4
{[%clk 0:02:37]} 14... Bd7 {[%clk 0:02:41.8]} 15. Na4 {[%clk 0:02:36.9]} 15...
Ne6 {[%clk 0:02:41.3]} 16. c5 {[%clk 0:02:35.1]} 16... Nxc5 {[%clk 0:02:34.3]}
17. Nxc5 {[%clk 0:02:29.3]} 17... dxc5 {[%clk 0:02:34.4]} 18. Qxc5 {[%clk
0:02:30.2]} 18... Bg4 {[%clk 0:02:34.2]} 19. Nc4 {[%clk 0:02:19.7]} 19... Be6
{[%clk 0:02:08.8]} 20. Nd6 {[%clk 0:02:07.6]} 20... Re7 {[%clk 0:01:45.7]} 21.
Bxe5 {[%clk 0:02:05.4]} 21... Nd7 {[%clk 0:01:42.5]} 22. Nxb7 {[%clk 0:01:44.3]}
22... Nxc5 {[%clk 0:01:40.4]} 23. Nxd8 {[%clk 0:01:44.1]} 23... Rxd8 {[%clk
0:01:38]} 0-1

[Event "*** Titled Tuesday Blitz"]
[Site "Chess.com"]
[Date "2020.11.10"]
[Round "2"]
[White "pedromartinez91"]
[Black "FMalexhdez"]
[Result "1-0"]
[WhiteElo "2577"]
[BlackElo "2285"]
[TimeControl "180+1"]
[EndTime "10:16:43 PST"]
[Termination "pedromartinez91 won by resignation"]

1. b3 {[%clk 0:03:00.9]} 1... e5 {[%clk 0:02:54.6]} 2. Bb2 {[%clk 0:02:51.8]}
2... d6 {[%clk 0:02:55.3]} 3. e3 {[%clk 0:02:47.4]} 3... Nc6 {[%clk 0:02:55.9]}
4. Nf3 {[%clk 0:02:47.5]} 4... g6 {[%clk 0:02:54.6]} 5. d4 {[%clk 0:02:46.9]}
5... Bg7 {[%clk 0:02:51.2]} 6. dxe5 {[%clk 0:02:46.4]} 6... Nxe5 {[%clk
0:02:48.5]} 7. Nxe5 {[%clk 0:02:46.4]} 7... dxe5 {[%clk 0:02:45.7]} 8. Qxd8+
{[%clk 0:02:44.8]} 8... Kxd8 {[%clk 0:02:46.2]} 9. Nc3 {[%clk 0:02:45.7]} 9...
c6 {[%clk 0:02:45.1]} 10. O-O-O+ {[%clk 0:02:46.6]} 10... Kc7 {[%clk 0:02:45.3]}
11. Ba3 {[%clk 0:02:46.6]} 11... Be6 {[%clk 0:02:26.8]} 12. Bd6+ {[%clk
0:02:46.3]} 12... Kc8 {[%clk 0:02:25.4]} 13. Ne4 {[%clk 0:02:46.6]} 13... f6
{[%clk 0:02:11.1]} 14. Nc5 {[%clk 0:02:45.8]} 14... Bf7 {[%clk 0:02:05]} 15. g4
{[%clk 0:02:27]} 15... Nh6 {[%clk 0:02:01.1]} 16. Rg1 {[%clk 0:02:20.7]} 16...
Rd8 {[%clk 0:01:54.3]} 17. Bh3 {[%clk 0:02:12.1]} 17... g5 {[%clk 0:01:46.5]}
18. Bg2 {[%clk 0:02:05.3]} 18... b6 {[%clk 0:01:19.4]} 19. Bxc6 {[%clk
0:01:55.2]} 1-0